fUST/lending_fUST_20251004
["ID","MTS","AMOUNT","RATE_DAILY","PERIOD"]
[389158670,1759593063972,-168.241434,0.00021095,2]
[389158671,1759593063982,-365.846877,0.00021095,2]
[389158672,1759593063992,-151.0,0.00021095,2]
[389158673,1759593064002,-365.846877,0.00021095,2]
[389158674,1759593064012,-500.0,0.00021095,2]
[389158675,1759593064022,-365.846877,0.00021095,2]
[389158676,1759593064031,-1469.96,0.00021095,2]
[389158677,1759593064041,-365.846877,0.00021095,2]
[389158678,1759593064051,-500.0,0.00021095,2]
[389158679,1759593064061,-632.58,0.00021095,2]
[389158680,1759593064071,-500.0,0.00021095,2]
[389158681,1759593064081,-1264.74,0.00021095,2]
[389158682,1759593064091,-500.0,0.00021095,2]
[389158683,1759593064101,-500.0,0.00021095,2]
[389158684,1759593064111,-1639.5,0.00021095,2]
[389158685,1759593064120,-834.51,0.00021095,2]
[389158686,1759593064131,-151.0,0.00021095,2]
[389158687,1759593064141,-151.0,0.00021095,2]
[389158688,1759593064151,-509.86,0.00021095,2]
[389158689,1759593064161,-151.0,0.00021095,2]
[389158690,1759593064171,-500.0,0.00021095,2]
[389158691,1759593064180,-573.11,0.00021095,2]
[389158692,1759593064190,-4288.81,0.00021095,2]
[389158693,1759593064200,-500.0,0.00021095,2]
[389158694,1759593064210,-2260.03,0.00021095,2]
[389158695,1759593064220,-614.86,0.00021095,2]
[389158696,1759593064231,-572.78,0.00021095,2]
[389158697,1759593064241,-151.0,0.00021095,2]
[389158698,1759593064250,-151.0,0.00021095,2]
[389158699,1759593064260,-151.0,0.00021095,2]
[389158700,1759593064270,-982.23,0.00021095,2]
[389158701,1759593064279,-500.0,0.00021095,2]
[389158702,1759593064290,-861.39,0.00021095,2]
[389158703,1759593064299,-711.3,0.00021095,2]
[389158704,1759593064309,-745.87,0.00021095,2]
[389158705,1759593064320,-100.74237339,0.00021095,2]
[389158706,1759593064553,-1068.47762661,0.00021095,2]
[389158707,1759593064563,-769.58,0.00021095,2]
[389158708,1759593064572,-500.0,0.00021095,2]
[389158709,1759593064582,-1039.1,0.00021095,2]
[389158710,1759593064592,-151.0,0.00021095,2]
[389158711,1759593064602,-586.44,0.00021095,2]
[389158712,1759593064612,-500.0,0.00021095,2]
[389158713,1759593064622,-5376.96,0.00021095,2]
[389158714,1759593064633,-243.82854199,0.00021095,2]
[389158715,1759593064647,-302.15620398,0.00021095,2]
[389158716,1759593064955,-500.0,0.00019178,2]
[389158717,1759593064969,-500.0,0.00019178,2]
[389158718,1759593064994,-500.0,0.00019452,2]
[389158719,1759593065019,-500.0,0.00019452,2]
[389158720,1759593065042,-500.0,0.00019726,2]
[389158721,1759593065065,-422.32301914,0.00019726,2]
[389158722,1759593067315,-302.87712356,0.00018473,2]
[389158723,1759593067324,-500.0,0.00019178,2]
[389158724,1759593067334,-500.0,0.00019178,2]
[389158725,1759593067344,-156.87135269,0.00019178,2]
[389158726,1759593067353,-500.0,0.00019452,2]
[389158727,1759593067362,-500.0,0.00019452,2]
[389158728,1759593067372,-77.67698086,0.00019726,2]
[389158729,1759593067381,-339.52,0.00019726,2]
[389158730,1759593067391,-500.0,0.0002,2]
[389158731,1759593067400,-500.0,0.0002,2]
[389158732,1759593067414,-151.0,0.0002,2]
[389158733,1759593067423,-500.0,0.00020273,2]
[389158734,1759593067432,-500.0,0.00020273,2]
[389158735,1759593067442,-305.75,0.00020547,2]
[389158736,1759593067452,-177.65,0.00020547,2]
[389158737,1759593067461,-151.0,0.00020821,2]
[389158738,1759593067470,-1779.12525403,0.00021095,2]
[389158739,1759593067480,-500.0,0.00021095,2]
[389158740,1759593067489,-1184.17,0.00021095,2]
[389158741,1759593067498,-539.07407112,0.00021095,2]
[389158742,1759593067507,-500.0,0.00021095,2]
[389158743,1759593067517,-2810.27,0.00021095,2]
[389158744,1759593067527,-500.0,0.00021095,2]
[389158745,1759593067536,-500.0,0.00021095,2]
[389158746,1759593067545,-628.79,0.00021095,2]
[389158747,1759593067555,-570.71,0.00021095,2]
[389158748,1759593067564,-761.94,0.00021095,2]
[389158749,1759593067574,-764.12,0.00021095,2]
[389158750,1759593067584,-1631.41,0.00021095,2]
[389158751,1759593067594,-1495.3,0.00021095,2]
[389158752,1759593067603,-2092.97,0.00021095,2]
[389158753,1759593067612,-1174.21,0.00021095,2]
[389158754,1759593067622,-500.0,0.00021095,2]
[389158755,1759593067632,-663.28,0.00021095,2]
[389158756,1759593067641,-1969.15,0.00021095,2]
[389158757,1759593067651,-1062.03,0.00021095,2]
[389158758,1759593067660,-680.83,0.00021095,2]
[389158759,1759593067670,-596.45,0.00021095,2]
[389158760,1759593067680,-5236.69,0.00021095,2]
[389158761,1759593067689,-2706.53,0.00021095,2]
[389158762,1759593067699,-722.39,0.00021095,2]
[389158763,1759593067708,-676.08,0.00021095,2]
[389158764,1759593067717,-500.0,0.00021095,2]
[389158765,1759593067727,-622.6,0.00021095,2]
[389158766,1759593067735,-500.0,0.00021095,2]
[389158767,1759593067745,-596.04,0.00021095,2]
[389158768,1759593067754,-770.23,0.00021095,2]
[389158769,1759593067763,-1625.7,0.00021095,2]
[389158770,1759593067773,-1512.93,0.00021095,2]
[389158771,1759593067783,-5806.93,0.00021095,2]
[389158772,1759593067794,-667.12,0.00021095,2]
[389158773,1759593067803,-500.0,0.00021095,2]
[389158774,1759593067812,-1495.05,0.00021095,2]
[389158775,1759593067822,-1031.66,0.00021095,2]
[389158776,1759593067831,-500.0,0.00021095,2]
[389158777,1759593067841,-500.0,0.00021095,2]
[389158778,1759593067850,-4277.11,0.00021095,2]
[389158779,1759593067860,-1104.08,0.00021095,2]
[389158780,1759593067870,-500.0,0.00021095,2]
[389158781,1759593067879,-2219.31,0.00021095,2]
[389158782,1759593067889,-959.24,0.00021095,2]
[389158783,1759593067899,-500.0,0.00021095,2]
[389158784,1759593067908,-942.05,0.00021095,2]
[389158785,1759593067918,-151.0,0.00021095,2]
[389158786,1759593067927,-645.52,0.00021095,2]
[389158787,1759593067937,-1371.244277,0.00021095,2]
[389158788,1759593067948,-151.0,0.00021095,2]
[389158789,1759593067958,-4584.92,0.00021095,2]
[389158790,1759593067967,-500.0,0.00021095,2]
[389158791,1759593067977,-3358.07,0.00021095,2]
[389158792,1759593067986,-196.679955,0.00021095,2]
[389158793,1759593067996,-1371.244277,0.00021095,2]
[389158794,1759593068006,-500.0,0.00021095,2]
[389158795,1759593068017,-1371.244277,0.00021095,2]
[389158796,1759593068027,-151.0,0.00021095,2]
[389158797,1759593068036,-2066.69,0.00021095,2]
[389158798,1759593068046,-151.0,0.00021095,2]
[389158799,1759593068056,-1371.244277,0.00021095,2]
[389158800,1759593068066,-500.0,0.00021096,2]
[389158801,1759593068077,-151.0,0.000211,3]
[389158802,1759593068087,-1000.0,0.00021116,2]
[389158803,1759593068096,-2000.0,0.00021116,2]
[389158804,1759593068106,-5254.06556093,0.00021145,2]
[389158805,1759593068116,-246.187258,0.00021216,2]
[389158806,1759593068126,-168.0,0.00021331,2]
[389158807,1759593068136,-2202.93267763,0.00021364,2]
[389158808,1759593068147,-614.18576353,0.00021364,2]
[389158809,1759593068157,-1500.0,0.00021364,2]
[389158810,1759593068167,-894.69647383,0.00021368,2]
[389158811,1759593068177,-1500.0,0.00021368,2]
[389158812,1759593068187,-168.0,0.00021369,2]
[389158813,1759593068197,-500.0,0.00021369,2]
[389158814,1759593068207,-500.0,0.00021369,2]
[389158815,1759593068217,-500.0,0.00021369,2]
[389158816,1759593068227,-500.0,0.00021369,2]
[389158817,1759593068237,-500.0,0.00021369,2]
[389158818,1759593068246,-500.0,0.00021369,2]
[389158819,1759593068256,-151.0,0.00021369,2]
[389158820,1759593068267,-749.21,0.00021369,2]
[389158821,1759593068277,-151.0,0.00021369,2]
[389158822,1759593068287,-151.0,0.00021369,2]
[389158823,1759593068297,-553.43,0.00021369,2]
[389158824,1759593068308,-223.646784,0.00021369,2]
[389158825,1759593068318,-151.0,0.00021369,2]
[389158826,1759593068328,-500.0,0.00021369,2]
[389158827,1759593068339,-500.0,0.00021369,2]
[389158828,1759593068349,-151.0,0.00021369,2]
[389158829,1759593068359,-151.0,0.00021369,2]
[389158830,1759593068369,-244.93255156,0.00021369,2]
[389158831,1759593068379,-500.0,0.00021369,2]
[389158832,1759593068389,-500.0,0.00021369,2]
[389158833,1759593068398,-500.0,0.00021369,2]
[389158834,1759593068411,-500.0,0.00021369,2]
[389158835,1759593068421,-500.0,0.00021369,2]
[389158836,1759593068431,-592.33,0.00021369,2]
[389158837,1759593068441,-612.18,0.00021369,2]
[389158838,1759593068451,-500.0,0.00021369,2]
[389158839,1759593068461,-500.0,0.00021369,2]
[389158840,1759593068471,-597.37,0.00021369,2]
[389158841,1759593068485,-1880.73,0.00021369,2]
[389158842,1759593068495,-561.95,0.00021369,2]
[389158843,1759593068505,-1220.52,0.00021369,2]
[389158844,1759593068515,-946.68,0.00021369,2]
[389158845,1759593068525,-500.0,0.00021369,2]
[389158846,1759593068535,-500.0,0.00021369,2]
[389158847,1759593068544,-883.67,0.00021369,2]
[389158848,1759593068554,-500.0,0.00021369,2]
[389158849,1759593068564,-500.0,0.00021369,2]
[389158850,1759593068574,-500.0,0.00021369,2]
[389158851,1759593068583,-500.0,0.00021369,2]
[389158852,1759593068593,-695.58,0.00021369,2]
[389158853,1759593068603,-500.0,0.00021369,2]
[389158854,1759593068613,-500.0,0.00021369,2]
[389158855,1759593068623,-500.0,0.00021369,2]
[389158856,1759593068633,-500.0,0.00021369,2]
[389158857,1759593068643,-811.13,0.00021369,2]
[389158858,1759593068653,-1711.96,0.00021369,2]
[389158859,1759593068664,-704.65,0.00021369,2]
[389158860,1759593068674,-767.26,0.00021369,2]
[389158861,1759593068683,-500.0,0.00021369,2]
[389158862,1759593068693,-500.0,0.00021369,2]
[389158863,1759593068703,-500.0,0.00021369,2]
[389158864,1759593068713,-500.0,0.00021369,2]
[389158865,1759593068723,-500.0,0.00021369,2]
[389158866,1759593068733,-924.94,0.00021369,2]
[389158867,1759593068743,-500.0,0.00021369,2]
[389158868,1759593068752,-500.0,0.00021369,2]
[389158869,1759593068762,-500.0,0.00021369,2]
[389158870,1759593068772,-823.2,0.00021369,2]
[389158871,1759593068782,-500.0,0.00021369,2]
[389158872,1759593068794,-985.96,0.00021369,2]
[389158873,1759593068804,-627.27,0.00021369,2]
[389158874,1759593068814,-500.0,0.00021369,2]
[389158875,1759593068824,-500.0,0.00021369,2]
[389158876,1759593068834,-315.38,0.00021369,2]
[389158877,1759593068844,-500.0,0.00021369,2]
[389158878,1759593068854,-532.82,0.00021369,2]
[389158879,1759593068867,-1949.45,0.00021369,2]
[389158880,1759593068878,-500.0,0.00021369,2]
[389158881,1759593068888,-500.0,0.00021369,2]
[389158882,1759593068898,-566.96,0.00021369,2]
[389158883,1759593068908,-500.0,0.00021369,2]
[389158884,1759593068918,-1119.98,0.00021369,2]
[389158885,1759593068928,-500.0,0.00021369,2]
[389158886,1759593068938,-500.0,0.00021369,2]
[389158887,1759593068948,-500.0,0.00021369,2]
[389158888,1759593068958,-500.0,0.00021369,2]
[389158889,1759593068968,-500.0,0.00021369,2]
[389158890,1759593068982,-545.28,0.00021369,2]
[389158891,1759593068992,-1261.68,0.00021369,2]
[389158892,1759593069002,-500.0,0.00021369,2]
[389158893,1759593069012,-500.0,0.00021369,2]
[389158894,1759593069022,-3676.63,0.00021369,2]
[389158895,1759593069032,-568.41,0.00021369,2]
[389158896,1759593069042,-637.38,0.00021369,2]
[389158897,1759593069053,-500.0,0.00021369,2]
[389158898,1759593069063,-500.0,0.00021369,2]
[389158899,1759593069074,-500.0,0.00021369,2]
[389158900,1759593069085,-500.0,0.00021369,2]
[389158901,1759593069095,-500.0,0.00021369,2]
[389158902,1759593069106,-548.38,0.00021369,2]
[389158903,1759593069117,-3208.65,0.00021369,2]
[389158904,1759593069128,-500.0,0.00021369,2]
[389158905,1759593069139,-1279.41,0.00021369,2]
[389158906,1759593069150,-685.52,0.00021369,2]
[389158907,1759593069160,-643.26,0.00021369,2]
[389158908,1759593069171,-500.0,0.00021369,2]
[389158909,1759593069181,-500.0,0.00021369,2]
[389158910,1759593069192,-5094.83,0.00021369,2]
[389158911,1759593069202,-1655.05,0.00021369,2]
[389158912,1759593069212,-1432.98,0.00021369,2]
[389158913,1759593069222,-967.26,0.00021369,2]
[389158914,1759593069232,-500.0,0.00021369,2]
[389158915,1759593069243,-500.0,0.00021369,2]
[389158916,1759593069252,-4495.31,0.00021369,2]
[389158917,1759593069263,-4031.17,0.00021369,2]
[389158918,1759593069273,-5060.59,0.00021369,2]
[389158919,1759593069282,-500.0,0.00021369,2]
[389158920,1759593069292,-4043.69,0.00021369,2]
[389158921,1759593069302,-500.0,0.00021369,2]
[389158922,1759593069311,-500.0,0.00021369,2]
[389158923,1759593069321,-1469.96,0.00021369,2]
[389158924,1759593069330,-500.0,0.00021369,2]
[389158925,1759593069340,-632.58,0.00021369,2]
[389158926,1759593069350,-500.0,0.00021369,2]
[389158927,1759593069359,-500.0,0.00021369,2]
[389158928,1759593069369,-1264.74,0.00021369,2]
[389158929,1759593069378,-500.0,0.00021369,2]
[389158930,1759593069388,-1639.5,0.00021369,2]
[389158931,1759593069398,-834.51,0.00021369,2]
[389158932,1759593069410,-509.86,0.00021369,2]
[389158933,1759593069421,-192.78529294,0.00021369,2]
[389158934,1759593069443,-573.11,0.00021369,2]
[389158935,1759593069455,-4288.81,0.00021369,2]
[389158936,1759593069466,-274.37158718,0.00021369,2]
[389158937,1759593069477,-2260.03,0.00021369,2]
[389158938,1759593069488,-614.86,0.00021369,2]
[389158939,1759593069499,-572.78,0.00021369,2]
[389158940,1759593069510,-982.23,0.00021369,2]
[389158941,1759593069520,-500.0,0.00021369,2]
[389158942,1759593069531,-861.39,0.00021369,2]
[389158943,1759593069542,-711.3,0.00021369,2]
[389158944,1759593069552,-745.87,0.00021369,2]
[389158945,1759593069563,-1169.22,0.00021369,2]
[389158946,1759593069574,-151.0,0.00021369,2]
[389158947,1759593069585,-769.58,0.00021369,2]
[389158948,1759593069595,-1039.1,0.00021369,2]
[389158949,1759593069606,-586.44,0.00021369,2]
[389158950,1759593069617,-500.0,0.00021369,2]
[389158951,1759593069627,-5376.96,0.00021369,2]
[389158952,1759593069638,-151.0,0.00021369,2]
[389158953,1759593069649,-151.0,0.00021369,2]
[389158954,1759593069659,-2325.11,0.00021369,2]
[389158955,1759593069670,-500.0,0.00021369,2]
[389158956,1759593069680,-270.547098,0.00021369,2]
[389158957,1759593069691,-1184.17,0.00021369,2]
[389158958,1759593069701,-1219.116387,0.00021369,2]
[389158959,1759593069711,-151.0,0.00021369,2]
[389158960,1759593069722,-1219.116387,0.00021369,2]
[389158961,1759593069732,-500.0,0.00021369,2]
[389158962,1759593069743,-2810.27,0.00021369,2]
[389158963,1759593069754,-151.0,0.00021369,2]
[389158964,1759593069764,-270.547098,0.00021369,2]
[389158965,1759593069775,-1219.116387,0.00021369,2]
[389158966,1759593069786,-500.0,0.00021369,2]
[389158967,1759593069983,-1219.116387,0.00021369,2]
[389158968,1759593069994,-500.0,0.00021369,2]
[389158969,1759593070003,-270.547098,0.00021369,2]
[389158970,1759593070012,-151.0,0.00021369,2]
[389158971,1759593070022,-628.79,0.00021369,2]
[389158972,1759593070031,-570.71,0.00021369,2]
[389158973,1759593070040,-761.94,0.00021369,2]
[389158974,1759593070049,-270.547098,0.00021369,2]
[389158975,1759593070060,-764.12,0.00021369,2]
[389158976,1759593070070,-1631.41,0.00021369,2]
[389158977,1759593070079,-1495.3,0.00021369,2]
[389158978,1759593070089,-2092.97,0.00021369,2]
[389158979,1759593070098,-1174.21,0.00021369,2]
[389158980,1759593070108,-151.0,0.00021369,2]
[389158981,1759593070117,-500.0,0.00021369,2]
[389158982,1759593070126,-663.28,0.00021369,2]
[389158983,1759593070135,-1969.15,0.00021369,2]
[389158984,1759593070145,-1062.03,0.00021369,2]
[389158985,1759593070155,-680.83,0.00021369,2]
[389158986,1759593070164,-596.45,0.00021369,2]
[389158987,1759593070174,-5236.69,0.00021369,2]
[389158988,1759593070183,-2706.53,0.00021369,2]
[389158989,1759593070193,-1034.699274,0.00021369,2]
[389158990,1759593070203,-1034.699274,0.00021369,2]
[389158991,1759593070212,-1034.699274,0.00021369,2]
[389158992,1759593070222,-197.584055,0.00021369,2]
[389158993,1759593070232,-151.0,0.00021369,2]
[389158994,1759593070241,-722.39,0.00021369,2]
[389158995,1759593070250,-197.584055,0.00021369,2]
[389158996,1759593070259,-172.979836,0.00021369,2]
[389158997,1759593070269,-676.08,0.00021369,2]
[389158998,1759593070278,-1034.699274,0.00021369,2]
[389158999,1759593070288,-500.0,0.00021369,2]
[389159000,1759593070297,-197.584055,0.00021369,2]
[389159001,1759593070306,-622.6,0.00021369,2]
[389159002,1759593070316,-197.584055,0.00021369,2]
[389159003,1759593070325,-500.0,0.00021369,2]
[389159004,1759593070335,-596.04,0.00021369,2]
[389159005,1759593070344,-770.23,0.00021369,2]
[389159006,1759593070353,-1625.7,0.00021369,2]
[389159007,1759593070363,-1512.93,0.00021369,2]
[389159008,1759593070372,-5806.93,0.00021369,2]
[389159009,1759593070382,-667.12,0.00021369,2]
[389159010,1759593070392,-500.0,0.00021369,2]
[389159011,1759593070401,-1495.05,0.00021369,2]
[389159012,1759593070414,-1031.66,0.00021369,2]
[389159013,1759593070423,-500.0,0.00021369,2]
[389159014,1759593070432,-500.0,0.00021369,2]
[389159015,1759593070442,-1215.184263,0.00021369,2]
[389159016,1759593070453,-151.0,0.00021369,2]
[389159017,1759593070462,-1215.184263,0.00021369,2]
[389159018,1759593070471,-4277.11,0.00021369,2]
[389159019,1759593070480,-1104.08,0.00021369,2]
[389159020,1759593070491,-1215.184263,0.00021369,2]
[389159021,1759593070500,-162.804883,0.00021369,2]
[389159022,1759593070509,-1215.184263,0.00021369,2]
[389159023,1759593070519,-373.56858848,0.00021369,2]
[389159024,1759593070528,-2219.31,0.00021369,2]
[389159025,1759593070538,-959.24,0.00021369,2]
[389159026,1759593070548,-500.0,0.00021369,2]
[389159027,1759593070558,-942.05,0.00021369,2]
[389159028,1759593070568,-162.804883,0.00021369,2]
[389159029,1759593070577,-162.804883,0.00021369,2]
[389159030,1759593070587,-645.52,0.00021369,2]
[389159031,1759593070596,-162.804883,0.00021369,2]
[389159032,1759593070605,-4584.92,0.00021369,2]
[389159033,1759593070615,-500.0,0.00021369,2]
[389159034,1759593070624,-3358.07,0.00021369,2]
[389159035,1759593070633,-500.0,0.00021369,2]
[389159036,1759593070642,-2066.69,0.00021369,2]
[389159037,1759593070652,-151.0,0.00021369,2]
[389159038,1759593070661,-500.0,0.0002137,2]
[389159039,1759593070671,-360.0,0.00021377,2]
[389159040,1759593070680,-1009.87836425,0.00021381,2]
[389159041,1759593070689,-2000.0,0.00021381,2]
[389159042,1759593070698,-2000.0,0.00021381,2]
[389159043,1759593070707,-1384.6551854,0.00021381,2]
[389159044,1759593070717,-2000.0,0.00021381,2]
[389159045,1759593070726,-1066.32025163,0.00021388,2]
[389159046,1759593070736,-1000.0,0.00021388,2]
[389159047,1759593070745,-1000.0,0.00021388,2]
[389159048,1759593070754,-1000.0,0.00021402,2]
[389159049,1759593070764,-1000.0,0.00021509,2]
[389159050,1759593070773,-1000.0,0.00021509,2]
[389159051,1759593070783,-1000.0,0.00021509,2]
[389159052,1759593070794,-1000.0,0.00021509,2]
[389159053,1759593070803,-500.0,0.00021514,2]
[389159054,1759593070813,-500.0,0.00021514,2]
[389159055,1759593070822,-500.0,0.00021514,2]
[389159056,1759593070832,-161.07994878,0.00021514,2]
[389159057,1759593070842,-595.88875907,0.00021514,2]
[389159058,1759593070852,-500.0,0.00021514,2]
[389159059,1759593070862,-500.0,0.00021514,2]
[389159060,1759593070872,-306.23613332,0.00021514,2]
[389159061,1759593070882,-500.0,0.00021514,2]
[389159062,1759593070895,-500.0,0.00021514,2]
[389159063,1759593070905,-500.0,0.00021514,2]
[389159064,1759593070915,-500.0,0.00021514,2]
[389159065,1759593070925,-500.0,0.00021514,2]
[389159066,1759593070937,-500.0,0.00021514,2]
[389159067,1759593070949,-500.0,0.00021514,2]
[389159068,1759593070959,-444.00664856,0.00021514,2]
[389159069,1759593070968,-500.0,0.00021514,2]
[389159070,1759593070978,-500.0,0.00021514,2]
[389159071,1759593070987,-814.30769203,0.00021516,7]
[389159072,1759593070997,-7565.85440774,0.0002152,2]
[389159073,1759593071006,-1500.0,0.00021525,2]
[389159074,1759593071015,-1500.0,0.00021525,2]
[389159075,1759593071025,-1500.0,0.00021525,2]
[389159076,1759593071034,-168.0,0.00021586,2]
[389159077,1759593071043,-210.0,0.00021587,2]
[389159078,1759593071052,-250.0,0.000216,2]
[389159079,1759593071061,-250.0,0.000216,2]
[389159080,1759593071071,-168.0,0.00021606,2]
[389159081,1759593071080,-3841.92290188,0.00021612,2]
[389159082,1759593071089,-500.0,0.00021643,2]
[389159083,1759593071098,-500.0,0.00021643,2]
[389159084,1759593071107,-151.0,0.00021643,2]
[389159085,1759593071116,-151.0,0.00021643,2]
[389159086,1759593071125,-500.0,0.00021643,2]
[389159087,1759593071134,-151.0,0.00021643,2]
[389159088,1759593071147,-500.0,0.00021643,2]
[389159089,1759593071156,-151.0,0.00021643,2]
[389159090,1759593071165,-500.0,0.00021643,2]
[389159091,1759593071174,-749.21,0.00021643,2]
[389159092,1759593071183,-151.0,0.00021643,2]
[389159093,1759593071193,-553.43,0.00021643,2]
[389159094,1759593071202,-500.0,0.00021643,2]
[389159095,1759593071211,-500.0,0.00021643,2]
[389159096,1759593071220,-500.0,0.00021643,2]
[389159097,1759593071229,-500.0,0.00021643,2]
[389159098,1759593071238,-500.0,0.00021643,2]
[389159099,1759593071249,-500.0,0.00021643,2]
[389159100,1759593071258,-500.0,0.00021643,2]
[389159101,1759593071267,-592.33,0.00021643,2]
[389159102,1759593071276,-612.18,0.00021643,2]
[389159103,1759593071285,-500.0,0.00021643,2]
[389159104,1759593071294,-151.0,0.00021643,2]
[389159105,1759593071303,-151.0,0.00021643,2]
[389159106,1759593071312,-500.0,0.00021643,2]
[389159107,1759593071321,-151.0,0.00021643,2]
[389159108,1759593071330,-597.37,0.00021643,2]
[389159109,1759593071339,-151.0,0.00021643,2]
[389159110,1759593071348,-1880.73,0.00021643,2]
[389159111,1759593071357,-561.95,0.00021643,2]
[389159112,1759593071367,-1220.52,0.00021643,2]
[389159113,1759593071376,-151.0,0.00021643,2]
[389159114,1759593071384,-946.68,0.00021643,2]
[389159115,1759593071395,-500.0,0.00021643,2]
[389159116,1759593071406,-500.0,0.00021643,2]
[389159117,1759593071417,-883.67,0.00021643,2]
[389159118,1759593071426,-500.0,0.00021643,2]
[389159119,1759593071436,-202.98674254,0.00021643,2]
[389159120,1759593071445,-500.0,0.00021643,2]
[389159121,1759593071455,-500.0,0.00021643,2]
[389159122,1759593071465,-695.58,0.00021643,2]
[389159123,1759593071474,-500.0,0.00021643,2]
[389159124,1759593071483,-500.0,0.00021643,2]
[389159125,1759593071493,-500.0,0.00021643,2]
[389159126,1759593071502,-500.0,0.00021643,2]
[389159127,1759593071511,-811.13,0.00021643,2]
[389159128,1759593071521,-1711.96,0.00021643,2]
[389159129,1759593071530,-704.65,0.00021643,2]
[389159130,1759593071539,-767.26,0.00021643,2]
[389159131,1759593071548,-500.0,0.00021643,2]
[389159132,1759593071558,-500.0,0.00021643,2]
[389159133,1759593071567,-497.27839829,0.00021643,2]
[389159134,1759593071575,-500.0,0.00021643,2]
[389159135,1759593071584,-500.0,0.00021643,2]
[389159136,1759593071594,-924.94,0.00021643,2]
[389159137,1759593071603,-500.0,0.00021643,2]
[389159138,1759593071612,-500.0,0.00021643,2]
[389159139,1759593071622,-500.0,0.00021643,2]
[389159140,1759593071631,-823.2,0.00021643,2]
[389159141,1759593071642,-500.0,0.00021643,2]
[389159142,1759593071651,-985.96,0.00021643,2]
[389159143,1759593071661,-627.27,0.00021643,2]
[389159144,1759593071671,-500.0,0.00021643,2]
[389159145,1759593071680,-500.0,0.00021643,2]
[389159146,1759593071689,-500.0,0.00021643,2]
[389159147,1759593071699,-532.82,0.00021643,2]
[389159148,1759593071709,-1949.45,0.00021643,2]
[389159149,1759593071718,-500.0,0.00021643,2]
[389159150,1759593071727,-254.33886898,0.00021643,2]
[389159151,1759593071737,-566.96,0.00021643,2]
[389159152,1759593071746,-500.0,0.00021643,2]
[389159153,1759593071755,-151.0,0.00021643,2]
[389159154,1759593071765,-151.0,0.00021643,2]
[389159155,1759593071774,-192.066194,0.00021643,2]
[389159156,1759593071784,-151.0,0.00021643,2]
[389159157,1759593071793,-151.0,0.00021643,2]
[389159158,1759593071802,-151.0,0.00021643,2]
[389159159,1759593071812,-1119.98,0.00021643,2]
[389159160,1759593071821,-472.09017562,0.00021643,2]
[389159161,1759593071830,-151.0,0.00021643,2]
[389159162,1759593071839,-500.0,0.00021643,2]
[389159163,1759593071848,-500.0,0.00021643,2]
[389159164,1759593071858,-151.0,0.00021643,2]
[389159165,1759593071867,-500.0,0.00021643,2]
[389159166,1759593071876,-151.0,0.00021643,2]
[389159167,1759593071886,-176.34166815,0.00021643,2]
[389159168,1759593071896,-151.0,0.00021643,2]
[389159169,1759593071906,-500.0,0.00021643,2]